Cogmind - Beta 14 --- EXPLORER MODE // 2024.09.21 @ 14:53:49 Player: Grzyb Result: Destroyed by P-60 Hacker with Shock Rifle Performance ------------- Evolutions (0) 0 Regions Visited (3) 600 Robots Destroyed (33) 165 Value Destroyed (745) 745 Prototype IDs (0) 0 Alien Tech Used (0) 0 Bonus (0) 0 TOTAL SCORE: 1510 Bonus ------- None Cogmind --------- Core Integrity 0/250 Matter 280/300 Energy 98/100 System Corruption 4% Temperature Cool (0) Movement Walking (125) Location -7/Recycling Parts ------- > --- POWER (1) -------- (None) > --- PROPULSION (2) --- Improved Carbon-fiber Leg Improved Titanium Leg > --- UTILITY (3) ------ Large Storage Unit Targeting Computer > --- WEAPON (2) ------- Assault Rifle Light Assault Rifle > --- INVENTORY (15) --- Subdweller Power Source Subdweller Power Source Aluminum Leg Subdweller Monowheel Subdweller Monowheel Medium Storage Unit Subdweller Optics Light Armor Plating Autobeam Ion Cannon Light Assault Rifle EMP Blaster Mining Laser Peak State ------------ > --- POWER ------------ Light Ion Engine > --- PROPULSION ------- Improved Carbon-fiber Leg Improved Titanium Leg > --- UTILITY ---------- Large Storage Unit Subdweller Optics Targeting Computer > --- WEAPON ----------- Assault Rifle Light Assault Rifle > --- INVENTORY -------- Subdweller Power Source Subdweller Power Source Aluminum Leg Subdweller Monowheel Subdweller Monowheel Medium Storage Unit Light Armor Plating Autobeam Light Assault Rifle Mining Laser [Rating: 16] Favorites ----------- Power Light Ion Engine Engine Light Ion Engine Propulsion Aluminum Leg Leg Aluminum Leg Wheel Subdweller Monowheel Utility Targeting Computer Device Structural Scanner Storage Large Storage Unit Processor Targeting Computer Protection Light Armor Plating Weapon EM Pulse Gun Energy Gun EM Pulse Gun Ballistic Gun Assault Rifle Ballistic Cannon Light Cannon Special Weapon Mining Laser Build | -11 -10 -10 -7 ------- Run | Yrd Mat Sub Rec Slots Evolved 1 | . 1 . . Power . | . . . . Propulsion . | . . . . Utility 1 | . 1 . . Weapon . | . . . . Parts Attached 32 | 7 8 15 2 Power 5 | 1 1 3 . Engine 5 | 1 1 3 . Core . | . . . . Reactor . | . . . . Propulsion 6 | 2 . 2 2 Treads . | . . . . Leg 4 | 2 . . 2 Wheel 2 | . . 2 . Hover . | . . . . Flight . | . . . . Utility 7 | 2 4 1 . Device 3 | 1 1 1 . Storage 2 | . 2 . . Processor 1 | 1 . . . Hackware . | . . . . Protection 1 | . 1 . . Artifact . | . . . . Weapon 14 | 2 3 9 . Energy Gun 4 | . 2 2 . Energy Cannon . | . . . . Ballistic Gun 4 | 2 . 2 . Ballistic Cannon 3 | . . 3 . Launcher . | . . . . Special Weapon 3 | . 1 2 . Impact Weapon . | . . . . Slashing Weapon . | . . . . Piercing Weapon . | . . . . Special Melee Weapon . | . . . . Unidentified Prototypes . | . . . . Parts Lost 10 | . 1 8 1 Power 3 | . . 2 1 Propulsion 1 | . . 1 . Utility 2 | . 1 1 . Weapon 4 | . . 4 . Highest Loss Streak 4 | . 1 4 1 To Critical Strikes . | . . . . Average Slot Usage (%) 97 | . 98 97 86 Engine 11 | . 12 11 11 Leg 18 | . 25 9 17 Wheel 5 | . . 14 2 Device 3 | . 5 . 4 Storage 11 | . 11 12 12 Processor 12 | . 12 12 12 Protection 7 | . 6 10 . Energy Gun 16 | . 21 10 . Ballistic Gun 3 | . 3 1 25 Ballistic Cannon 3 | . . 9 . Peak Build Rating 16 | 7 9 12 16 Average Rating 9 | 5 8 10 13 On Entrance 6 | . 7 9 10 Naked Turns . | . . . . Heaviest Build 32 | 7 31 32 28 Greatest Support 40 | 20 20 40 38 Greatest Overweight (x) 9 | . 1 3 9 Average Overweight (x) . | . . . . Largest Inventory Capacity 15 | 5 15 15 15 Average Capacity 12 | 5 10 15 15 Most Carried 13 | 5 8 12 13 Average Carried 7 | 2 6 9 11 Final Capacity 15 | 5 15 15 15 Final Carried 13 | 5 8 9 13 Class Distribution -------------------- 100% | Hacker-Mutant Dominant Class ---------------- Hacker-Mutant | -10/Materials Hacker-Mutant | -10/Subcaves Hacker-Mutant | -7/Recycling Resources | -11 -10 -10 -7 ----------- Run | Yrd Mat Sub Rec Matter Collected 799 | 239 181 359 20 Remotely . | . . . . Salvage Created 1059 | . 619 440 . Parts 80 | . 46 34 . Haulers Intercepted . | . . . . Recyclers Shooed 2 | . 2 . . Parts Field Recycled . | . . . . Retrieved Matter . | . . . . Parts Self-Destructed . | . . . . Prevented . | . . . . Kills | -11 -10 -10 -7 ------- Run | Yrd Mat Sub Rec Combat Hostiles Destroyed 23 | . 10 13 . Guns 12 | . 9 3 . Cannons 7 | . . 7 . AOE 4 | . 1 3 . Classes Destroyed 7 | . 5 2 . Builder 2 | . 2 . . Recycler 3 | . 3 . . Turret 2 | . . 2 . Watcher 3 | . 3 . . Swarmer 10 | . 6 4 . Grunt 4 | . 4 . . Subdweller 9 | . . 9 . Best Kill Streak 5 | . 5 5 . Combat Bots Only 5 | . 4 5 . Max Kills in Single Turn 3 | . 2 3 . Gunslinging 1 | . 1 . . Exploded 3 | . 1 3 . Melee . | . . . . Uniques/NPCs Destroyed . | . . . . Combat | -11 -10 -10 -7 -------- Run | Yrd Mat Sub Rec Hostile Shots Fired 287 | . 51 219 17 Missed 111 | . 12 95 4 Damage Taken 1255 | . 248 885 122 Core 250 | . 21 200 29 Absorbed by Shields . | . . . . Ignored by Resistances 803 | . 164 566 73 Core Remaining (%) 100 | 100 . . . Volleys Fired 124 | . 43 75 6 Largest 2 | . 2 2 2 Hottest 145 | . 100 145 40 Shots Fired 215 | . 79 124 12 Gun 156 | . 77 67 12 Cannon 46 | . . 46 . Launcher . | . . . . Special 13 | . 2 11 . Kinetic 116 | . 40 64 12 Thermal 13 | . 2 11 . Explosive . | . . . . Electromagnetic 86 | . 37 49 . Robot Hit Streak 45 | . 19 45 18 Robot Miss Streak 2 | . 2 1 1 Penetration Max . | . . . . Secondary Targets 2 | . 2 . . Max Gunslinging Chain 1 | . 1 . . Shots Hit Robots 163 | . 51 101 11 Core Hits 57 | . 24 31 2 Critical Kills . | . . . . Critical Parts Destroyed 1 | . . . 1 Critical Strikes 1 | . . . 1 Destroy 1 | . . . 1 Melee Attacks . | . . . . Impact . | . . . . Slashing . | . . . . Piercing . | . . . . Sneak Attacks . | . . . . Combat Hostiles . | . . . . Follow-up Attacks . | . . . . Damage Inflicted 2102 | . 664 1294 144 Guns 1331 | . 549 638 144 Cannons 573 | . . 573 . Explosions 185 | . 102 83 . Melee . | . . . . Ramming 13 | . 13 . . Kinetic 1117 | . 190 783 144 Thermal 185 | . 102 83 . Explosive . | . . . . Electromagnetic 787 | . 359 428 . Impact . | . . . . Slashing . | . . . . Piercing . | . . . . Highest Corruption 3 | . . . 3 Average Corruption 2 | . . . 2 Corruption Purged . | . . . . Corruption Blocked . | . . . . Overload Shots . | . . . . Overflow Damage . | . . . . Projectiles . | . . . . Explosions . | . . . . Melee . | . . . . Knockbacks 3 | . . 3 . Impact . | . . . . Kinetic 3 | . . 3 . Secondary . | . . . . Self-Inflicted Damage 14 | . 14 . . Shots 1 | . 1 . . Rammed . | . . . . Targets Rammed 3 | . 3 . . Kicked 3 | . 3 . . Crushed . | . . . . Highest Temperature 141 | . 141 17 . Average Temperature 42 | . 44 8 . Received Heat Transfer 606 | . 141 465 . Siege Activations . | . . . . Robots Corrupted . | . . . . Combat Hostiles . | . . . . Parts Fried 1 | . . 1 . Impact Corruptions . | . . . . Robots Melted . | . . . . Combat Hostiles . | . . . . Parts Melted . | . . . . Heat Transferred 150 | . 50 100 . Parts Sabotaged . | . . . . Parts Stolen . | . . . . Parts Stripped . | . . . . Power Chain Reactions 3 | . 2 1 . Alert | -11 -10 -10 -7 ------- Run | Yrd Mat Sub Rec Peak Influence 248 | . 248 . 80 Initial 80 | . . . 80 Average 39 | . 37 . 79 Maximum Alert Level 1 | . 1 . . Low Security (%) 98 | 100 97 . 100 Level 1 1 | . 2 . . Level 2 . | . . . . Level 3 . | . . . . Level 4 . | . . . . Level 5 . | . . . . High Security . | . . . . Max Security . | . . . . Squads Dispatched . | . . . . Investigation . | . . . . Extermination . | . . . . Reinforcement . | . . . . Assault . | . . . . Garrison . | . . . . Intercept . | . . . . Searches Triggered . | . . . . Construction Impeded . | . . . . Haulers Reinforced . | . . . . Active Scanning Responses . | . . . . Cargo Convoy Interrupts . | . . . . Stealth | -11 -10 -10 -7 --------- Run | Yrd Mat Sub Rec Distress Signals 1 | . 1 . . Communications Jammed . | . . . . Distress Signals . | . . . . Times Spotted 44 | . 18 24 2 Peak Tracking Total 7 | . 4 7 2 Tactical Retreats 3 | . . 3 . Traps | -11 -10 -10 -7 ------- Run | Yrd Mat Sub Rec Traps Triggered 3 | . 3 . . Indirectly . | . . . . Trap Hack Attempts . | . . . . Triggered . | . . . . Disarmed . | . . . . Reprogrammed . | . . . . Reused . | . . . . Traps Extracted . | . . . . Installed . | . . . . Triggered . | . . . . Machines | -11 -10 -10 -7 ---------- Run | Yrd Mat Sub Rec Machines Disabled . | . . . . Max in Single Turn . | . . . . Machines Repaired . | . . . . Machines Dismantled . | . . . . Machines Sabotaged . | . . . . Overloaded Fab Kills . | . . . . Hacking | -11 -10 -10 -7 --------- Run | Yrd Mat Sub Rec Machines Accessed 2 | . 2 . . Terminals 2 | . 2 . . Fabricators . | . . . . Repair Stations . | . . . . Recycling Units . | . . . . Scanalyzers . | . . . . Garrison Access . | . . . . Total Hacks 3 | . 3 . . Successful 3 | . 3 . . Failed . | . . . . Catastrophic . | . . . . Database Lockouts . | . . . . Manual . | . . . . Terminals 3 | . 3 . . Fabricators . | . . . . Repair Stations . | . . . . Recycling Units . | . . . . Scanalyzers . | . . . . Garrison Access . | . . . . Terminal Hacks 3 | . 3 . . Branch Access Points 1 | . 1 . . Locate Traps 1 | . 1 . . Hauler Manifests 1 | . 1 . . Fabricator Hacks . | . . . . Repair Station Hacks . | . . . . Recycling Unit Hacks . | . . . . Scanalyzer . | . . . . Garrison Access Hacks . | . . . . Unauthorized Hacks . | . . . . Terminals . | . . . . Fabricators . | . . . . Repair Stations . | . . . . Recycling Units . | . . . . Scanalyzers . | . . . . Garrison Access . | . . . . Data Cores Recovered . | . . . . Used . | . . . . Hacking Detections . | . . . . Full Trace Events . | . . . . Feedback Events . | . . . . Feedback Blocked . | . . . . Robot Schematics Acquired . | . . . . Robots Built . | . . . . Authchips . | . . . . Time . | . . . . Total Robot Build Rating . | . . . . Part Schematics Acquired . | . . . . Parts Built . | . . . . Authchips . | . . . . Time . | . . . . Total Part Build Rating . | . . . . Parts Repaired . | . . . . Time . | . . . . Parts Recycled . | . . . . Recycled Matter . | . . . . Retrieved Matter . | . . . . Retrieved Components . | . . . . Parts Scanalyzed . | . . . . Part Schematics Acquired . | . . . . Parts Damaged . | . . . . Bothacking | -11 -10 -10 -7 ------------ Run | Yrd Mat Sub Rec Used RIF Installer . | . . . . Robots Hacked . | . . . . Non-combat . | . . . . Combat . | . . . . Robot Hacks Applied . | . . . . Relay Couplers Released . | . . . . Fabnet Peak Effective % . | . . . . Robots Rewired . | . . . . Allies Hacked . | . . . . Hacks Repelled . | . . . . Allies | -11 -10 -10 -7 -------- Run | Yrd Mat Sub Rec Total Allies . | . . . . Largest Group . | . . . . Highest-Rated Group . | . . . . Highest-Rated Ally . | . . . . Total Orders . | . . . . Ally Attacks . | . . . . Total Damage . | . . . . Kills . | . . . . Allies Corrupted . | . . . . Allies Melted . | . . . . Intel | -11 -10 -10 -7 ------- Run | Yrd Mat Sub Rec Robot Analysis Total . | . . . . Derelict Logs Recovered . | . . . . Drone Launches . | . . . . Drone Recoveries . | . . . . Exploration | -11 -10 -10 -7 ------------- Run | Yrd Mat Sub Rec Turns Passed 3041 | 78 1658 1164 141 Spaces Moved 1806 | 57 988 671 90 Core 10 | 8 . . 2 Treads . | . . . . Legs 1227 | 49 988 128 62 Wheels 569 | . . 543 26 Hover . | . . . . Flight . | . . . . Fastest Speed 50 | 50 120 110 120 Average Speed 143 | 110 153 134 132 Slowest Speed 500 | 120 190 330 500 Overloaded Moves . | . . . . Propulsion Burnouts . | . . . . Robots Hopped . | . . . . Cave-ins Triggered . | . . . . Exploration Rate (%) 36 | 4 97 29 17 Regions Visited 3 Branch Regions 2 Pre-discovered Areas . | . . . . Known Exits Taken 3 | 1 1 1 . Unknown Exits Taken . | . . . . Scrap Searched . | . . . . Spaces Dug . | . . . . Terrain Destroyed 12 | . 9 3 . Melee . | . . . . Projectile 1 | . 1 . . AOE 11 | . 8 3 . Terrain Rammed . | . . . . Walls Destroyed . | . . . . Machines Disabled . | . . . . Actions | -11 -10 -10 -7 --------- Run | Yrd Mat Sub Rec Total 2003 | 69 1048 783 103 Wait 12 | . . 12 . Move 1803 | 56 987 670 90 Hop . | . . . . Pick Up 21 | 6 5 8 2 Fast Attach 11 | 6 1 2 2 Attach 9 | 1 2 6 . Detach 3 | . . 1 2 Swap 12 | . 5 7 . Drop 4 | . 2 2 . Fire 124 | . 43 75 6 Melee . | . . . . Ram . | . . . . Kick 3 | . 3 . . Crush . | . . . . Escape Stasis . | . . . . Rewire 1 | . . . 1 Trap . | . . . . Miscellaneous . | . . . . Route ------- -11/Scrapyard -10/Materials (discovered 5 exits: *Mat x3 / *Min / *Sub) -10/Subcaves -7/Recycling History --------- Turn | Location | Event 7 | -11/Scrapyard | Identified exit to Materials 7 | -11/Scrapyard | Discovered exit to Materials (range 15) 79 | -11/Scrapyard | Entered Materials 79 | -10/Materials | Evolved 1 slot: Utility x1 260 | -10/Materials | Identified exit to Materials 260 | -10/Materials | Discovered exit to Materials (range 13) 313 | -10/Materials | Build established: Hacker-Mutant 563 | -10/Materials | Identified exit to Mines 563 | -10/Materials | Discovered exit to Mines (range 16) 805 | -10/Materials | Discovered exit to Materials (range 5) 1311 | -10/Materials | Discovered exit to Materials (range 16) 1624 | -10/Materials | Identified exit to Subcaves 1624 | -10/Materials | Discovered exit to Subcaves (range 9) 1737 | -10/Materials | Entered Subcaves 2342 | -10/Subcaves | Ambushed by Subdwellers from Twisted Machinery 2779 | -10/Subcaves | Core integrity fell below 50% 2779 | -10/Subcaves | Identified exit to Recycling 2779 | -10/Subcaves | Discovered exit to Recycling (range 15) 2837 | -10/Subcaves | Core integrity fell below 20% 2849 | -10/Subcaves | Lost 4 parts (1p1u2w) 2901 | -10/Subcaves | Entered Recycling 2902 | -7/Recycling | Met a Zionite searching for Scraptown 3042 | -7/Recycling | Destroyed by P-60 Hacker with Shock Rifle Last Messages --------------- is, do you?" 02903_ J2-98C(z): "I've heard great things about that place, but almost no one seems to know where to find it, only that you access it somewhere from Recycling here." 02904_ J2-98C(z): "Anyway I've been here searching too long already, time to slink back to the caves before I'm caught. You'd best do the same." 02943_ Acquired Imp. Titanium Leg. 02947_ Acquired Imp. Carbon-fiber Leg. 02949_ Sub. Optics shoots sparks and powers down. 02949_ Acquired Ion Cannon. 02950_ Acquired 20 matter. 02980_ Acquired EMP Blaster. 03013_ P-60 Hacker springs to life. 03013_ I-36 Angel springs to life. 03017_ Attempting to rewire I-36 Angel. 03028_ Destroyed Gravmag System. 03030_ Lgt. Ion Engine destroyed. 03036_ Destroyed Gravmag System. 03039_ P-60 Hacker suffers critical hit (Destroy). 03039_ Destroyed Mic. Nuclear Core. Map ----- +----------------------------------------------------+ | ?????????????### ????????????????????????????????? | | ????????????+ ????????????????????????????????? | | ????????????# ????????????????????????????????? | | ????????????# #???????????????????????????????? | | ????????????# ???????????????????????????????? | | ????????????# "???????????????????????????????? | | ????????????# #???????????????????????????????? | | ????????????# #???????????????????????????????? | | ????????????? #???????????????????????????????? | | ?????????????? ##########??????????????????????? | | ??????????????? ???????????????????????? | | ?????????????### #?????????????????????????? | | ?????????????#== #?????????????????????????? | | ?????????????#== #?????????????????????????? | | ?????????????#= #?????????????????????????? | | ????????????#### #####???##????????????????? | | ????????????+ ??????????????? | | ????????????# ##+#####+#####+######???????????? | | ????????????# #* !%#???????????? | | ????????????+ # !! #???????????? | | ????????????#### # [] ! =! | #???????????? | | ???????????????# # [ !! =#???????????? | | ???????????????# # [ #???????????? | | #??????????????# # /[ ! #???????????? | | #####+########## ###########+#########???????????? | | @ p r i #????????? | | +????????? | | r #????????? | | #########% /#############+##+######+### #????????? | | #???????# #??????????? ??????????????????????? | | ????????#####??????????? ??????????????????????? | | ???????????????????????? ! ??????????????????????? | | ???????????????????????? !=??????????????????????? | | ???????????????????????? ??????????????????????? | | ????????????????????????! ??????????????????????? | | ???????????????????????! ?????????????????????? | | ??????????????????????? !?????????????????????? | | ??????????????????????? !?????????????????????? | | ???????????????????????#####?????????????????????? | | ?????????????????????????????????????????????????? | | ?????????????????????????????????????????????????? | | ?????????????????????????????????????????????????? | | ?????????????????????????????????????????????????? | | ?????????????????????????????????????????????????? | | ?????????????????????????????????????????????????? | | ?????????????????????????????????????????????????? | | ?????????????????????????????????????????????????? | | ?????????????????????????????????????????????????? | | | | | +----------------------------------------------------+ Best States ------------- Heat Dissipation 25 Energy Generation 15 Energy Capacity 200 Matter Stores 300 Matter Capacity 300 Sight Range 21 Terrain Scan Density 10 Armor Coverage 150 Resistance: KI 35 Resistance: TH 35 Resistance: EX 35 Resistance: EM 35 Resistance: I 35 Resistance: S 35 Resistance: P 35 Evasion (%) 55 Targeting Accuracy 5 Offensive Hacking 20 Item Schematics ----------------- None Robot Schematics ------------------ None Fabricated ------------ Nothing Alien Tech Used ----------------- None Achievements -------------- None Challenges ------------ None Game ------ Seed NodeMasterDoomcannon Manual? 0 Play Time 00:40:26 Cumulative 25.0 hours Start 2024.09.08 @ 11:37:56 End 2024.09.21 @ 14:53:49 Sessions 3 Manual Loads 0 Difficulty Explorer Special Mode None Game No. 13 Rogue 0 Adventurer 0 Explorer 13 Win Type - Total 0 Types 0/0/0/0/0/0/0/0/0 Lore% 12 Gallery% 22 Achievement% 20 Wizard Run 0 Options --------- Layout 0 ASCII 0 Keyboard 1 Movement Vi Keybinds 0 Fullscreen 1 Font 24/Smallcaps Map View 76x50 Zoom Use 0% Tactical HUD 1 Map Filters NONE Filters NONE Steam 0 RUN: 7979adb8-fb7d-4113-b513-a8a664b87d64